[Event "Speed Chess Championship Main Event Qua"]
[Site "Chess.com"]
[Date "2022.11.13"]
[Round "3"]
[White "Grischuk, Alexander"]
[Black "Artemiev, Vladislav"]
[Result "1/2-1/2"]
[WhiteElo "2745"]
[BlackElo "2701"]
[ECO "D78"]
[EventDate "2022.??.??"]
[Annotator "rafael"]
[PlyCount "130"]
[Beauty "4879753978375"]
[EventType "team-tourn"]
[TimeControl "300+1"]

{Grischuk is a cult figure in the chess world and one of the greatest blitz players in history—his world titles in this modality speak for themselves. In the post-match interview, he mentioned that he usually loses a lot of games to Artemiev in online chess, and therefore his victory came as a surprise to him. One of the things I appreciate about this great player is that you never know when he's joking and when he's serious.} 
1.Nf3 d5 2.g3 g6 3.Bg2 Bg7 4.d4 Nf6 5.O-O O-O 6.c4 c6 7.Qb3 {Artemiev himself has played this variation with White in a classical game.} 7...a5 {An aggressive move that is one of Black's popular choices.} ( 7...Qb6 8.Nc3 Bf5 9.Qxb6 axb6 10.cxd5 Nxd5 11.Nxd5 cxd5 12.Bd2 Nc6 13.e3 {And the game is equal, but Artemiev is a supreme master at winning this kind of position. Artemiev-Murzin, Sochi 2017.} ) 8.cxd5 a4 9.Qd1 cxd5 10.Nc3 Qa5 11.Bd2 Nc6 12.e3 Qa6 13.Re1 {13.Ne5 is another attempt to get the upper hand. It was played in a correspondence game and this is usually a good indication that the move is good.} ( 13.Ne5 Rd8 14.Rc1 ( 14.f4 {is a possible improvement.} ) 14...Nxe5 15.dxe5 Ne4 16.f4 Bf5 {and Black is fine. Grott-Wittal, email 2014.} ) 13...a3 {A new move.} ( 13...Bf5 14.Bf1 Qa7 15.h3 h5 {with an equal position. Nakamura-Svidler, St. Louis (rapid) 2021.} ) ( 13...Rd8 14.Bf1 Qa7 15.h3 h6 {Svidler-Ding, Legends of Chess (rapid) 2020.} ) 14.bxa3 ( 14.Bf1 {It seems logical to bother the queen on a6.} 14...Qb6 15.bxa3 Rxa3 16.Rb1 Qd8 {White has a slight advantage.} ) ( 14.b3 {is also possible.} ) 14...Qxa3 15.Qb3 ( 15.Nb5 {This doesn't offer much either.} 15...Qa4 16.Qxa4 Rxa4 {with an equal endgame.} ) 15...Qxb3 16.axb3 Bf5 17.Ne5 e6 18.Nxc6 bxc6 {Now the position is a bit unpleasant for White, as the b3-pawn can be attacked.} 19.Rxa8 $6 ( 19.b4 {This should be enough for a draw.} 19...Nd7 ( 19...Rfb8 20.Ra5 $1 ) ( 19...Rab8 20.Ra6 ) 20.Bf1 ) 19...Rxa8 20.Rc1 $6 ( 20.Na4 {is better.} ) 20...Rb8 21.Na4 $6 {Another inaccuracy and now Black has good winning chances.} ( 21.f3 $1 {leads to some simplifications and White has drawing chances in the endgame a pawn down after:} 21...Rxb3 22.e4 dxe4 23.fxe4 Rb2 $1 24.exf5 Rxd2 25.fxe6 fxe6 26.h3 ) 21...Rxb3 22.Rxc6 Rd3 $1 {White has problems with the back rank.} 23.Rc2 ( 23.Be1 $2 Rd1 ) 23...Bf8 $1 ( 23...Rxe3 $4 {Of course this is bad because White has an intermediate check before capturing the rook.} 24.Rc8+ ) 24.Ra2 $2 {This move loses due to a nice tactical shot.} ( 24.Rb2 $2 {loses to} 24...Ra3 $1 25.Nc5 Ra1+ 26.Bf1 Bh3 ) ( 24.Nc5 Rxd4 25.Nb3 Bxc2 26.Nxd4 Ba4 {Black has good winning chances, but the game is not over—with pawns on only one side of the board, it is possible to fight for a draw.} ) 24...Bb4 $1 25.g4 {The only chance.} ( 25.Bxb4 Rd1+ 26.Bf1 Bh3 {and Black mates.} ) 25...Bxg4 26.h3 Rxd2 27.Rxd2 Bxd2 28.hxg4 Nxg4 29.Kf1 Nxe3+ $1 {The best way to convert the advantage.} 30.fxe3 Bxe3 31.Nc5 Bxd4 32.Nd3 f5 {With five pawns for the piece, Black has an \"easy\" victory ahead, under normal circumstances. Grischuk mentioned in the interview that he had even considered resigning. But in blitz games, anything can happen.} 33.Bf3 Kf7 34.Bd1 Ke7 35.Ba4 Kd6 36.Be8 Ke7 37.Bc6 g5 38.Bb7 h5 39.Bc8 Kd6 40.Ne1 Bf6 41.Nc2 g4 42.Na3 Bd8 43.Nb5+ Ke5 44.Na7 Bb6 45.Nc6+ Kd6 46.Nb4 h4 47.Kg2 h3+ 48.Kg3 f4+ 49.Kh2 Bd4 50.Nd3 Be3 51.Ne1 Bf2 52.Nd3 Bg3+ 53.Kh1 f3 54.Nb4 {Artemiev methodically advanced his pawns and the game is nearing its end, but now the unbelievable happens.} 54...e5 {This move still doesn't spoil anything.} ( 54...Be5 {Followed by the advance of the g-pawn, is probably the simplest.} ) 55.Bxg4 f2 $4 {The real blunder.} ( 55...e4 56.Nc2 ( 56.Bxh3 e3 ) 56...Ke5 57.Bxh3 d4 58.Kg1 e3 {and the pawns decide.} ) 56.Bxh3 e4 57.Kg2 Bh4 58.Nxd5 Kxd5 59.Bg4 Kd4 60.Kf1 Ke3 61.Be2 Kd2 62.Ba6 e3 63.Be2 Bg3 64.Bh5 e2+ 65.Bxe2 Bh4 1/2-1/2

[Event "Tata Steel Chess India Rapid 2022"]
[Site "Chess.com"]
[Date "2022.11.29"]
[Round "3"]
[White "So, Wesley"]
[Black "Mamedyarov, Shakhriyar"]
[Result "0-1"]
[WhiteElo "2760"]
[BlackElo "2741"]
[ECO "E11"]
[EventDate "2022.??.??"]
[Annotator "rafael"]
[PlyCount "70"]
[Beauty "7973069946426"]
[EventType "rapid"]
[TimeControl "1500+10"]

1.d4 Nf6 2.Nf3 e6 3.c4 Bb4+ {The Bogo-Indian Defense is not very popular among the elite, but it's a great defense, especially for club-level players, as the plans are easier to understand than, for example, the Queen's Indian, one of the most positionally complex openings in chess.} 4.Nbd2 d5 {This move has a dubious reputation, but Mamedyarov played it in the first round of the tournament and in the Olympiad as well, so it's clear he has his own opinion.} 5.Qa4+ {This is the critical move.} ( 5.e3 {Gukesh played this in the aforementioned game. Mamedyarov managed to win this one as well—surely a great advertisement for the Bogo.} ) 5...Nc6 6.a3 Be7 7.e3 {The problem with Black's position is the knight on c6, which is why this line is not popular. This poor knight has such a bad reputation because it hinders the c-pawn advance and Black's development. But is this bad reputation justified $2} 7...a5 $1 {[%c_effect a5;square;a5;type;GreatFind;persistent;true] An important move. Maybe White will move the queen to c2, and now Black is ready to advance the pawn to a4 and improve the pawn structure on the queenside. If you find this too abstract, remember that this is not a Sicilian, where the plans are usually geared toward checkmating: the game is more subtle and delicate in some defenses against the queen's pawn openings.} 8.b4 {Again, the most critical.} ( 8.Bd3 O-O 9.O-O Bd7 10.Qc2 a4 11.Ne5 Na5 {and Black was fine in Yilmaz - Mamedyarov, Chennai 2022.} ) ( 8.Qc2 a4 $1 {[%c_effect a4;square;a4;type;GreatFind;persistent;true]} 9.cxd5 exd5 10.Bb5 O-O 11.Bxa4 Bd7 12.Bxc6 Bxc6 13.O-O {Here, Black has to demonstrate the compensation for the pawn, although, with the light-squared bishop and active pieces, there is certainly something. Korobov - Kuzubov, Lvov 2014.} ) 8...dxc4 $1 {[%c_effect c4;square;c4;type;GreatFind;persistent;true] This is Mamedyarov's idea, leading to an underexplored position that will, I believe, become popular after this game.} ( 8...O-O $6 {[%c_effect g8;square;g8;type;Inaccuracy;persistent;true]} 9.c5 {and Black's position becomes very passive.} ) 9.Nxc4 $2 {[%c_effect c4;square;c4;type;Mistake;persistent;true] A novelty and also a rare opening error by So, one of the elite grandmasters with the best theoretical preparation out there.} ( 9.b5 $1 {[%c_effect b5;square;b5;type;GreatFind;persistent;true] is necessary. Now Black has a difficult decision.} 9...Na7 $5 {[%c_effect a7;square;a7;type;Interesting;persistent;true] I believe this move is the most accurate, simply due to the fact that it was played in a recent correspondence game and Black survived.} ( 9...Nb8 10.Nxc4 O-O 11.Bd3 {White has some advantage. The difference in development is clear.} ( 11.Bb2 {Aditya - Jumabayev, Sharjah 2022.} ) ) 10.Nxc4 O-O 11.Bd3 b6 {Diaz - Nekhaev, ICCF email 2020. The position of the knight on a7 is awkward, but Black will try to break through on c6 and bring that knight back into play at some point. This seems to be a critical position for evaluating Black's opening.} ) 9...b5 $3 {[%c_effect b5;square;b5;type;Brilliant;persistent;true] Now Black has a very strong counterplay.} 10.Qxb5 Bd7 11.Qg5 {This move seems forced to human eyes, but actually, there is an alternative.} ( 11.bxa5 $5 {[%c_effect a5;square;a5;type;Interesting;persistent;true] Only a computer would have the courage to play such a move.} 11...Nb4 ( 11...Nxd4 12.Qb2 Nxf3+ 13.gxf3 {leads to an unclear position.} ) 12.Qxb4 $1 {[%c_effect b4;square;b4;type;GreatFind;persistent;true] This is the point. Crazy, But I've seen Kasparov play similar sacrifices before.} 12...Bxb4+ 13.axb4 {A queen is a queen, but maybe White has some compensation. I'd never play this anyway.} ) 11...axb4 12.Qxg7 $2 {[%c_effect g7;square;g7;type;Mistake;persistent;true] Now White is lost.} ( 12.Bd3 {This is the lesser evil.} ) 12...Rg8 13.Qh6 bxa3 {The queen is out of play, and the g8-rook makes it difficult for White to complete his development, as we will see.} 14.Be2 ( 14.Bxa3 {Here, Black has many ways to win. One of them is:} 14...Rg6 15.Qf4 Nb4 16.Rc1 Rxa3 $1 {[%c_effect a3;square;a3;type;GreatFind;persistent;true]} 17.Nxa3 Nbd5 {and the a3-knight is lost.} ) 14...Rxg2 {White's king has nowhere to hide.} 15.Nfe5 Nxe5 16.Nxe5 ( 16.dxe5 {Again, Black has many winning continuations. Let's see one of them:} 16...Ne4 17.Qxh7 Bb4+ 18.Bd2 ( 18.Kf1 Rxf2+ 19.Kg1 Qg5+ ) 18...Nxd2 19.Qh8+ Ke7 20.Qf6+ Kf8 21.Qh8+ Rg8 {and there is no perpetual check.} ) 16...Rg8 $1 {[%c_effect g8;square;g8;type;GreatFind;persistent;true]} 17.Bf3 Qb8 $1 {[%c_effect b8;square;b8;type;GreatFind;persistent;true] Mamedyarov plays with great precision. He brings the queen to the attack and is not afraid of sacrificing the exchange.} 18.e4 ( 18.Bxa8 Qxa8 19.f3 Qa4 {With a devastating attack.} ) 18...Qb3 19.Qe3 Bb4+ 20.Bd2 Qb2 $1 {[%c_effect b2;square;b2;type;GreatFind;persistent;true]} 21.Nxd7 Nxd7 22.Bxb4 ( 22.Rd1 a2 {The a-pawn decides the game.} ) 22...Qxa1+ 23.Ke2 Qb2+ 24.Qd2 c5 $1 {[%c_effect c5;square;c5;type;GreatFind;persistent;true] Another blow.} 25.e5 ( 25.dxc5 Ne5 {and the knight comes to the party.} ) 25...Rb8 26.Bc3 Qxd2+ 27.Kxd2 cxd4 28.Bxd4 Rb3 29.Rc1 Ke7 30.Bd1 Rb5 31.Rc7 Rd5 32.Ke3 Rb8 33.Bc2 Kd8 34.Ra7 Nxe5 35.Be4 Ra5 {A beautiful victory for Mamedyarov.} 0-1

[Event "FIDE World Rapid Chess Championship 2022"]
[Site "Chess.com"]
[Date "2022.12.26"]
[Round "4"]
[White "Carlsen, Magnus"]
[Black "Abdusattorov, Nodirbek"]
[Result "1-0"]
[WhiteElo "2859"]
[BlackElo "2713"]
[ECO "A01"]
[EventDate "2022.??.??"]
[Annotator "rafael"]
[PlyCount "69"]
[Beauty "8041386741299"]
[EventType "rapid"]
[TimeControl "900+10"]

1.b3 {Carlsen played this move, usually associated with legendary Danish GM Bent Larsen, in his two White games on day one. A welcome breath of fresh air for those who enjoy more creative openings.} 1...e5 2.Bb2 Nc6 3.e3 Nf6 {Abdusattorov chooses one of the variations with the best reputation for Black.} 4.Nf3 Bd6 {This is a perfectly normal move, but it's not the most popular one.} ( 4...e4 {is the most frequently played move.} ) 5.c4 O-O 6.d3 Re8 7.a3 a5 8.Be2 Bf8 9.O-O d5 10.cxd5 Nxd5 11.Nbd2 f6 12.Qc2 {The game ended up falling into a very typical pawn structure, which can occur in several variations and also with inverted colors (in several Sicilian lines, for example, Black is in a position similar to the one that White has here). This structure is known as the \"Hedgehog\" and there is a legendary game always associated with the plan that Carlsen will try later on. This game was played by Fischer in 1970 and shows how the American genius was many years ahead of his time: he was the first to employ the plan that is traditional today.} 12...Bf5 ( 12...Be6 {This was the move chosen in the aforementioned game.} 13.Kh1 $5 {[%c_effect h1;square;h1;type;Interesting;persistent;true] Here begins the revolutionary plan.} 13...Qd7 14.Rg1 Rad8 15.Ne4 Qf7 16.g4 $1 {[%c_effect g4;square;g4;type;GreatFind;persistent;true] With this move, White holds the position of the knight on e4 and prepares an attack on the kingside.} 16...g6 $6 {[%c_effect g6;square;g6;type;Inaccuracy;persistent;true]} 17.Rg3 Bg7 18.Rag1 {And White has strong pressure. I leave the complete game to the readers; after all, this is one of the great works in chess history.} 18...Nb6 19.Nc5 Bc8 20.Nh4 Nd7 21.Ne4 Nf8 22.Nf5 $1 {[%c_effect f5;square;f5;type;GreatFind;persistent;true]} 22...Be6 23.Nc5 Ne7 24.Nxg7 Kxg7 25.g5 $18 Nf5 26.Rf3 b6 27.gxf6+ Kh8 28.Nxe6 Rxe6 29.d4 exd4 30.Bc4 d3 31.Bxd3 Rxd3 32.Qxd3 Rd6 33.Qc4 Ne6 34.Be5 Rd8 35.h4 Nd6 36.Qg4 Nf8 37.h5 Ne8 38.e4 Rd2 39.Rh3 Kg8 40.hxg6 Nxg6 41.f4 Kf8 42.Qg5 Nd6 43.Bxd6+ {and Black resigned in Fischer-Andersson, Siegen 1970.} ) 13.Rfe1 Bg6 14.g4 $5 {[%c_effect g4;square;g4;type;Interesting;persistent;true] The first new move of the game and a curious version of Fischer's plan, as Carlsen doesn't even make preparations with Kh1-Rg1. The move causes even more impact in this modern version. The idea is to gain space on the kingside, follow with Kh1-Rg1-Rg3-Rag1 and the entire script already shown by the legendary American.} ( 14.Rac1 {was played in Matijasevic-Mihic, Belgrade 2019.} ) 14...Qd7 ( 14...a4 $5 {[%c_effect a4;square;a4;type;Interesting;persistent;true] This is a very interesting move to change the character of the game. Instead of plans, we go for concrete moves and variations. If White captures or fails to capture on b3, then we can argue that Black has gained a positional advantage. If White plays 15.b4 then comes the traditional sacrifice on b4 and chaos on the board.} 15.b4 ( 15.bxa4 Nb6 {Regaining the pawn.} ) 15...Ndxb4 $1 {[%c_effect b4;square;b4;type;GreatFind;persistent;true]} 16.axb4 Nxb4 {With a complicated position and chances for both sides, for example:} 17.Qc4+ ( 17.Qc3 Bxd3 ) 17...Bf7 18.Qc3 Nd5 19.Qc1 b5 {and the pawns march dangerously.} ) 15.Kh1 Rad8 ( 15...Qxg4 $2 {[%c_effect g4;square;g4;type;Mistake;persistent;true] Of course the pawn cannot be captured.} 16.Nxe5 ) 16.Ne4 Kh8 17.Rad1 {A prophylactic move to avoid a possible knight sacrifice on b4.} ( 17.Rg1 Ndb4 $5 {[%c_effect b4;square;b4;type;Interesting;persistent;true]} 18.axb4 Nxb4 19.Qc3 Nxd3 {with good compensation for the piece, for instance:} 20.Bxd3 Qxd3 21.Qxd3 Rxd3 22.Nc3 Bb4 23.Rgc1 c6 ) 17...Bf7 18.Rg1 Nb6 {Setting up queenside activity with the next move.} 19.Rg3 {Carlsen follows Fischer's plan.} 19...a4 $1 {[%c_effect a4;square;a4;type;GreatFind;persistent;true] Black starts the counterplay on the queenside. The tension grows.} 20.bxa4 Na5 21.Rdg1 $6 {[%c_effect g1;square;g1;type;Inaccuracy;persistent;true]} ( 21.g5 $5 {[%c_effect g5;square;g5;type;Interesting;persistent;true] The computer shows that this brave move has its interest.} 21...Bb3 22.Qc1 Bxd1 23.Bxd1 f5 24.Nf6 $1 {[%c_effect f6;square;f6;type;GreatFind;persistent;true] An important theme that we will see in the continuation of the game as well.} 24...gxf6 25.gxf6 {White is a rook down, but the position is unclear, as the black king is insecure, especially because of the a1-h8 diagonal and the g-file. For example:} 25...Nc6 26.Bb3 {White's attack looks violent, but the computer indicates equality with its traditional accuracy.} ) ( 21.Qb1 {is a more solid and well-behaved move.} 21...Nxa4 22.g5 $1 {[%c_effect g5;square;g5;type;GreatFind;persistent;true]} 22...f5 23.g6 $1 {[%c_effect g6;square;g6;type;GreatFind;persistent;true]} ( 23.Nxe5 Rxe5 24.Bxe5 Qe8 $1 {[%c_effect e8;square;e8;type;GreatFind;persistent;true]} 25.Bxc7 Ra8 {with chances for both sides.} ) 23...Bxg6 24.Neg5 Nxb2 25.Qxb2 {White plans 26.Nh4, with a threatening attack.} ) 21...Bd5 $2 {[%c_effect d5;square;d5;type;Mistake;persistent;true]} ( 21...Nxa4 {is better. Probably Abdusattorov was afraid of the following variation:} 22.g5 f5 23.Nxe5 {but Black's position is OK after} 23...Rxe5 24.Bxe5 fxe4 25.dxe4 Nc5 ) 22.g5 $1 {[%c_effect g5;square;g5;type;GreatFind;persistent;true]} 22...f5 23.Nc3 $2 {[%c_effect c3;square;c3;type;Mistake;persistent;true]} ( 23.Nf6 $3 {[%c_effect f6;square;f6;type;Brilliant;persistent;true] This fantastic move crowns White's strategy.} 23...gxf6 24.gxf6 {It looks somewhat surprising, but the attack is very strong.} 24...Qc6 ( 24...f4 {doesn't help:} 25.R3g2 Nc6 26.a5 $5 {[%c_effect a5;square;a5;type;Interesting;persistent;true]} 26...Nc8 27.d4 {And the attack continues. A pretty variation is:} 27...e4 28.Ne5 Nxe5 29.dxe5 f3 30.e6 $1 {[%c_effect e6;square;e6;type;GreatFind;persistent;true]} 30...fxg2+ 31.Rxg2 Qxe6 32.f7+ Qe5 33.Rg8# {Nice $1} ) 25.Qb1 $1 {[%c_effect b1;square;b1;type;GreatFind;persistent;true]} 25...Qxf6 26.e4 Bf7 27.Rg5 {Black is unable to hold the position.} ) 23...Bc6 ( 23...Bb3 {is also possible, but White still has pressure.} 24.Qb1 ) 24.e4 ( 24.g6 {It was possible to start with this move, which Carlsen will play later.} 24...h6 25.e4 ) 24...Nxa4 25.Nxa4 Bxa4 26.Qc3 Nc6 27.g6 $1 {[%c_effect g6;square;g6;type;GreatFind;persistent;true]} 27...Nd4 ( 27...h6 28.Ng5 $1 {[%c_effect g5;square;g5;type;GreatFind;persistent;true] This is the point $1} 28...hxg5 ( 28...Re7 {is more stubborn.} ) 29.Rh3+ {Other moves also win.} 29...Kg8 30.d4 {And White threatens both 31.Rh8+ and 31.Bc4+.} ( 30.Rxg5 {is also good.} ) 30...g4 31.Bc4+ Re6 32.Rxg4 $1 {[%c_effect g4;square;g4;type;GreatFind;persistent;true]} ( 32.exf5 $6 {[%c_effect f5;square;f5;type;Inaccuracy;persistent;true]} 32...Nxd4 $1 {[%c_effect d4;square;d4;type;GreatFind;persistent;true]} ) 32...fxg4 33.Qg3 $1 {[%c_effect g3;square;g3;type;GreatFind;persistent;true]} 33...gxh3 34.Qxh3 {with a decisive attack.} ) 28.Ng5 $1 {[%c_effect g5;square;g5;type;GreatFind;persistent;true] This beautiful move leaves White with a big advantage, but the adventures continue.} 28...Nxe2 $6 {[%c_effect e2;square;e2;type;Inaccuracy;persistent;true]} ( 28...Re7 {is more resistant, although White's position is still much better.} 29.Bh5 ) 29.Nf7+ $2 {[%c_effect f7;square;f7;type;Mistake;persistent;true] A rare tactical error by the world champion.} ( 29.Qc4 $1 {[%c_effect c4;square;c4;type;GreatFind;persistent;true] wins immediately.} 29...Re7 ( 29...Nxg3+ 30.Rxg3 ) 30.gxh7 $1 {[%c_effect h7;square;h7;type;GreatFind;persistent;true]} 30...Re6 {Otherwise White mates on g8.} 31.Nxe6 Nxg3+ 32.Rxg3 {with a winning advantage.} ) 29...Qxf7 $1 {[%c_effect f7;square;f7;type;GreatFind;persistent;true] Now Black is back in the fight.} ( 29...Kg8 {is worse:} 30.Qc4 Nxg3+ 31.Rxg3 Qe6 32.gxh7+ Kxf7 ( 32...Kxh7 33.Ng5+ ) 33.Qxe6+ Kxe6 34.h8=Q {with a winning position for White.} ) 30.gxf7 Nxc3 31.fxe8=Q Bxe8 ( 31...Rxe8 32.Bxc3 Bc6 33.f3 Kg8 $1 {[%c_effect g8;square;g8;type;GreatFind;persistent;true] An important move, preparing 34...Rd8. Black has compensation for the exchange.} ) 32.Bxc3 Bg6 $2 {[%c_effect g6;square;g6;type;Mistake;persistent;true] Abdusattorov follows the plan started with the previous capture, but it contains a tactical problem.} ( 32...f4 {is better.} 33.Rh3 Bd6 ) 33.exf5 Bxf5 34.Bxe5 Bxd3 $6 {[%c_effect d3;square;d3;type;Inaccuracy;persistent;true]} ( 34...Rd7 {is necessary.} 35.Rf3 Rf7 {Although White should be able to convert the material advantage.} ) 35.Rxg7 $1 {[%c_effect g7;square;g7;type;GreatFind;persistent;true] A pretty finale for a memorable game.} ( 35.Rxg7 Bxg7 36.Rxg7 Rd5 37.Rg5+ Rxe5 38.Rxe5 {With an easily winning endgame.} ) 1-0